[Event "Titled Tuesday Blitz July 6 2021"]
[White "Mickiewicz, Piotr"]
[Black "Spata, German"]
[WhiteFideId "1114891"]
[BlackFideId "113026"]
[WhiteElo "2263"]
[BlackElo "2238"]
[Result "1-0"]
[Round "11"]
[TimeControl "180+1"]
[Date "2021.07.06"]
[WhiteClock "0:00:24"]
[BlackClock "0:00:21"]

1. e4 {[%clk 0:02:58]}  d5 {[%clk 0:03:00]} 2. exd5 {[%clk 0:02:57]}  Qxd5 {[%clk 0:03:01]} 3. Nc3 {[%clk 0:02:56]}  Qd8 {[%clk 0:03:01]} 4. d4 {[%clk 0:02:55]}  Nf6 {[%clk 0:03:02]} 5. Bf4 {[%clk 0:02:54]}  g6 {[%clk 0:03:02]} 6. Qd2 {[%clk 0:02:53]}  Bg7 {[%clk 0:03:02]} 7. O-O-O {[%clk 0:02:52]}  c6 {[%clk 0:02:57]} 8. Bh6 {[%clk 0:02:33]}  O-O {[%clk 0:02:42]} 9. h4 {[%clk 0:02:29]}  Qa5 {[%clk 0:02:40]} 10. Bxg7 {[%clk 0:02:19]}  Kxg7 {[%clk 0:02:40]} 11. h5 {[%clk 0:02:19]}  Nxh5 {[%clk 0:02:16]} 12. Be2 {[%clk 0:02:02]}  Nf6 {[%clk 0:02:07]} 13. Qh6+ {[%clk 0:02:00]}  Kg8 {[%clk 0:02:07]} 14. d5 {[%clk 0:01:40]}  Rd8 {[%clk 0:01:16]} 15. Ne4 {[%clk 0:01:34]}  Rxd5 {[%clk 0:01:08]} 16. Nxf6+ {[%clk 0:01:27]}  exf6 {[%clk 0:01:09]} 17. Qxh7+ {[%clk 0:01:26]}  Kf8 {[%clk 0:01:10]} 18. Qh8+ {[%clk 0:01:25]}  Ke7 {[%clk 0:01:10]} 19. Qxc8 {[%clk 0:01:25]}  Rxd1+ {[%clk 0:01:03]} 20. Bxd1 {[%clk 0:01:23]}  Qg5+ {[%clk 0:01:02]} 21. Kb1 {[%clk 0:01:18]}  Qd2 {[%clk 0:00:50]} 22. Nf3 {[%clk 0:01:17]}  Qd7 {[%clk 0:00:48]} 23. Re1+ {[%clk 0:01:06]}  Kd6 {[%clk 0:00:48]} 24. Qf8+ {[%clk 0:01:01]}  Kd5 {[%clk 0:00:41]} 25. c4+ {[%clk 0:00:43]}  Kxc4 {[%clk 0:00:41]} 26. Re4+ {[%clk 0:00:32]}  Kb5 {[%clk 0:00:33]} 27. Be2+ {[%clk 0:00:23]}  Kb6 {[%clk 0:00:27]} 28. Qb4+ {[%clk 0:00:23]}  Kc7 {[%clk 0:00:21]} 29. Re7 {[%clk 0:00:24]} 1-0


[Site "https://www.chess.com"]

[Event "Titled Tuesday Blitz July 6 2021"]
[White "Mirzoev, Azer"]
[Black "Vlassov, Nikolai"]
[WhiteFideId "13400304"]
[BlackFideId "4103360"]
[WhiteElo "2525"]
[BlackElo "2407"]
[Result "1-0"]
[Round "11"]
[TimeControl "180+1"]
[Date "2021.07.06"]
[WhiteClock "0:00:18"]
[BlackClock "0:00:01"]

1. d4 {[%clk 0:02:59]}  Nf6 {[%clk 0:02:59]} 2. Nf3 {[%clk 0:03:00]}  e6 {[%clk 0:02:59]} 3. c4 {[%clk 0:03:00]}  Nc6 {[%clk 0:02:59]} 4. e3 {[%clk 0:02:59]}  Bb4+ {[%clk 0:02:59]} 5. Bd2 {[%clk 0:02:59]}  a5 {[%clk 0:03:00]} 6. a3 {[%clk 0:02:58]}  Bxd2+ {[%clk 0:02:59]} 7. Nbxd2 {[%clk 0:02:59]}  d6 {[%clk 0:02:58]} 8. Be2 {[%clk 0:02:57]}  O-O {[%clk 0:02:56]} 9. O-O {[%clk 0:02:58]}  e5 {[%clk 0:02:55]} 10. h3 {[%clk 0:02:55]}  Bf5 {[%clk 0:02:53]} 11. Rc1 {[%clk 0:02:55]}  Re8 {[%clk 0:02:51]} 12. Re1 {[%clk 0:02:52]}  h6 {[%clk 0:02:51]} 13. Bf1 {[%clk 0:02:47]}  Nd7 {[%clk 0:02:49]} 14. Qb3 {[%clk 0:02:23]}  Nb6 {[%clk 0:02:32]} 15. c5 {[%clk 0:02:21]}  a4 {[%clk 0:02:32]} 16. Qa2 {[%clk 0:02:04]}  dxc5 {[%clk 0:02:21]} 17. dxc5 {[%clk 0:02:03]}  Nd7 {[%clk 0:02:18]} 18. Bb5 {[%clk 0:01:56]}  Qe7 {[%clk 0:02:14]} 19. Qc4 {[%clk 0:01:41]}  Na5 {[%clk 0:01:48]} 20. Qc3 {[%clk 0:01:38]}  Nc6 {[%clk 0:01:38]} 21. Nc4 {[%clk 0:01:17]}  f6 {[%clk 0:01:35]} 22. Ncd2 {[%clk 0:01:15]}  Kf8 {[%clk 0:01:28]} 23. Nh4 {[%clk 0:01:07]}  Bh7 {[%clk 0:01:27]} 24. Bd3 {[%clk 0:00:59]}  e4 {[%clk 0:01:17]} 25. Nxe4 {[%clk 0:00:38]}  Bxe4 {[%clk 0:01:16]} 26. Red1 {[%clk 0:00:38]}  Rad8 {[%clk 0:01:07]} 27. Ng6+ {[%clk 0:00:31]}  Bxg6 {[%clk 0:01:03]} 28. Bxg6 {[%clk 0:00:32]}  Nde5 {[%clk 0:00:58]} 29. Bxe8 {[%clk 0:00:31]}  Qxe8 {[%clk 0:00:55]} 30. Qc2 {[%clk 0:00:30]}  Kf7 {[%clk 0:00:44]} 31. Qxa4 {[%clk 0:00:28]}  Rxd1+ {[%clk 0:00:38]} 32. Rxd1 {[%clk 0:00:26]}  Qe6 {[%clk 0:00:37]} 33. Qb5 {[%clk 0:00:26]}  Nd7 {[%clk 0:00:14]} 34. Qxb7 {[%clk 0:00:24]}  Nxc5 {[%clk 0:00:11]} 35. Qxc7+ {[%clk 0:00:24]}  Kg6 {[%clk 0:00:12]} 36. Rd6 {[%clk 0:00:23]}  Qb3 {[%clk 0:00:06]} 37. Rxc6 {[%clk 0:00:23]}  Ne4 {[%clk 0:00:05]} 38. Qf4 {[%clk 0:00:21]}  Qd1+ {[%clk 0:00:05]} 39. Kh2 {[%clk 0:00:21]}  Qd5 {[%clk 0:00:05]} 40. Qg4+ {[%clk 0:00:20]}  Kh7 {[%clk 0:00:04]} 41. Rc7 {[%clk 0:00:20]}  Qe5+ {[%clk 0:00:04]} 42. Qf4 {[%clk 0:00:20]}  Qd5 {[%clk 0:00:04]} 43. b4 {[%clk 0:00:20]}  h5 {[%clk 0:00:02]} 44. a4 {[%clk 0:00:19]}  Kg6 {[%clk 0:00:01]} 45. b5 {[%clk 0:00:19]}  Nd6 {[%clk 0:00:01]} 46. Rd7 {[%clk 0:00:18]} 1-0


[Site "https://www.chess.com"]

[Event "Titled Tuesday Blitz July 6 2021"]
[White "Mohammad Fahad, Rahman"]
[Black "Saravana, Krishnan P."]
[WhiteFideId "10207791"]
[BlackFideId "5018382"]
[WhiteElo "2323"]
[BlackElo "2245"]
[Result "1-0"]
[Round "11"]
[TimeControl "180+1"]
[Date "2021.07.06"]
[WhiteClock "0:00:02"]
[BlackClock "0:00:47"]

1. e4 {[%clk 0:03:00]}  e6 {[%clk 0:02:57]} 2. d4 {[%clk 0:02:58]}  d5 {[%clk 0:02:57]} 3. Nc3 {[%clk 0:02:59]}  Bb4 {[%clk 0:02:57]} 4. e5 {[%clk 0:02:59]}  c5 {[%clk 0:02:58]} 5. a3 {[%clk 0:02:59]}  Bxc3+ {[%clk 0:02:57]} 6. bxc3 {[%clk 0:03:00]}  Qa5 {[%clk 0:02:53]} 7. Bd2 {[%clk 0:02:58]}  Qa4 {[%clk 0:02:53]} 8. Qg4 {[%clk 0:02:57]}  g6 {[%clk 0:02:52]} 9. h4 {[%clk 0:02:44]}  Nc6 {[%clk 0:02:49]} 10. Nf3 {[%clk 0:02:41]}  h6 {[%clk 0:02:49]} 11. h5 {[%clk 0:02:33]}  g5 {[%clk 0:02:47]} 12. Kd1 {[%clk 0:02:07]}  f5 {[%clk 0:02:44]} 13. exf6 {[%clk 0:02:01]}  Nxf6 {[%clk 0:02:42]} 14. Qh3 {[%clk 0:01:56]}  e5 {[%clk 0:02:28]} 15. Qh2 {[%clk 0:01:50]}  Bf5 {[%clk 0:02:27]} 16. Rc1 {[%clk 0:01:46]}  exd4 {[%clk 0:02:07]} 17. cxd4 {[%clk 0:01:29]}  O-O {[%clk 0:02:06]} 18. Be2 {[%clk 0:00:42]}  Rae8 {[%clk 0:02:02]} 19. Ke1 {[%clk 0:00:31]}  cxd4 {[%clk 0:01:55]} 20. Kf1 {[%clk 0:00:28]}  Rxe2 {[%clk 0:01:46]} 21. Kxe2 {[%clk 0:00:27]}  Qc4+ {[%clk 0:01:28]} 22. Kd1 {[%clk 0:00:27]}  d3 {[%clk 0:01:27]} 23. cxd3 {[%clk 0:00:13]}  Qxd3 {[%clk 0:01:21]} 24. Re1 {[%clk 0:00:11]}  Qb3+ {[%clk 0:01:17]} 25. Ke2 {[%clk 0:00:11]}  Re8+ {[%clk 0:01:14]} 26. Kf1 {[%clk 0:00:11]}  Ne4 {[%clk 0:01:10]} 27. Be3 {[%clk 0:00:11]}  Qxa3 {[%clk 0:01:07]} 28. Kg1 {[%clk 0:00:10]}  Qe7 {[%clk 0:01:05]} 29. Nd4 {[%clk 0:00:10]}  Bd7 {[%clk 0:00:59]} 30. Nxc6 {[%clk 0:00:09]}  bxc6 {[%clk 0:00:58]} 31. Bxa7 {[%clk 0:00:08]}  Qa3 {[%clk 0:00:56]} 32. Bd4 {[%clk 0:00:07]}  c5 {[%clk 0:00:52]} 33. Be3 {[%clk 0:00:05]}  d4 {[%clk 0:00:51]} 34. Qc7 {[%clk 0:00:05]}  dxe3 {[%clk 0:00:47]} 35. fxe3 {[%clk 0:00:02]} 1-0


[Site "https://www.chess.com"]

[Event "Titled Tuesday Blitz July 6 2021"]
[White "Nakamura, Hikaru"]
[Black "Andreikin, Dmitry"]
[WhiteFideId "2016192"]
[BlackFideId "4158814"]
[WhiteElo "2900"]
[BlackElo "2782"]
[Result "1-0"]
[Round "11"]
[TimeControl "180+1"]
[Date "2021.07.06"]
[WhiteClock "0:00:06"]
[BlackClock "0:00:02"]

1. Nf3 {[%clk 0:03:00]}  d5 {[%clk 0:02:58]} 2. e3 {[%clk 0:03:00]}  Nf6 {[%clk 0:02:56]} 3. c4 {[%clk 0:02:59]}  c6 {[%clk 0:02:53]} 4. d4 {[%clk 0:02:59]}  a6 {[%clk 0:02:52]} 5. Bd3 {[%clk 0:02:48]}  Bg4 {[%clk 0:02:51]} 6. Qb3 {[%clk 0:02:42]}  Qc7 {[%clk 0:02:49]} 7. cxd5 {[%clk 0:02:39]}  Bxf3 {[%clk 0:02:38]} 8. gxf3 {[%clk 0:02:40]}  cxd5 {[%clk 0:02:38]} 9. Nc3 {[%clk 0:02:37]}  e6 {[%clk 0:02:38]} 10. Bd2 {[%clk 0:02:36]}  Nc6 {[%clk 0:02:38]} 11. Rc1 {[%clk 0:02:32]}  Bd6 {[%clk 0:02:34]} 12. f4 {[%clk 0:02:27]}  O-O {[%clk 0:02:30]} 13. Ne2 {[%clk 0:02:17]}  Rac8 {[%clk 0:02:22]} 14. O-O {[%clk 0:02:13]}  Qe7 {[%clk 0:02:09]} 15. Kh1 {[%clk 0:02:11]}  Ng4 {[%clk 0:02:04]} 16. f3 {[%clk 0:02:07]}  Nf6 {[%clk 0:02:01]} 17. Rg1 {[%clk 0:02:01]}  g6 {[%clk 0:01:59]} 18. e4 {[%clk 0:01:58]}  Bb4 {[%clk 0:01:39]} 19. Be3 {[%clk 0:01:49]}  Na5 {[%clk 0:01:34]} 20. Qd1 {[%clk 0:01:49]}  Nc4 {[%clk 0:01:27]} 21. Bxc4 {[%clk 0:01:48]}  Rxc4 {[%clk 0:01:21]} 22. Rxc4 {[%clk 0:01:33]}  dxc4 {[%clk 0:01:21]} 23. Qa4 {[%clk 0:01:34]}  Nd5 {[%clk 0:00:45]} 24. Bf2 {[%clk 0:01:14]}  Nb6 {[%clk 0:00:40]} 25. Qc2 {[%clk 0:01:13]}  Rc8 {[%clk 0:00:40]} 26. h4 {[%clk 0:00:59]}  Nd7 {[%clk 0:00:33]} 27. h5 {[%clk 0:01:00]}  b5 {[%clk 0:00:33]} 28. Kg2 {[%clk 0:00:56]}  Bd6 {[%clk 0:00:29]} 29. hxg6 {[%clk 0:00:56]}  fxg6 {[%clk 0:00:25]} 30. Qd2 {[%clk 0:00:50]}  Rf8 {[%clk 0:00:23]} 31. Bg3 {[%clk 0:00:49]}  Bb4 {[%clk 0:00:22]} 32. Qe3 {[%clk 0:00:48]}  Nf6 {[%clk 0:00:22]} 33. Rd1 {[%clk 0:00:46]}  Nh5 {[%clk 0:00:22]} 34. Bh2 {[%clk 0:00:46]}  Bd6 {[%clk 0:00:21]} 35. e5 {[%clk 0:00:45]}  Bb4 {[%clk 0:00:19]} 36. d5 {[%clk 0:00:46]}  Bc5 {[%clk 0:00:19]} 37. Qe4 {[%clk 0:00:44]}  Qh4 {[%clk 0:00:18]} 38. dxe6 {[%clk 0:00:39]}  Qf2+ {[%clk 0:00:15]} 39. Kh1 {[%clk 0:00:39]}  Ng7 {[%clk 0:00:13]} 40. Qd5 {[%clk 0:00:31]}  Be7 {[%clk 0:00:09]} 41. Qe4 {[%clk 0:00:20]}  Nf5 {[%clk 0:00:09]} 42. Bg1 {[%clk 0:00:20]}  Qxe2 {[%clk 0:00:08]} 43. Qxe2 {[%clk 0:00:19]}  Ng3+ {[%clk 0:00:09]} 44. Kh2 {[%clk 0:00:18]}  Nxe2 {[%clk 0:00:10]} 45. Rd7 {[%clk 0:00:18]}  Re8 {[%clk 0:00:09]} 46. Be3 {[%clk 0:00:19]}  Bh4 {[%clk 0:00:04]} 47. Kh3 {[%clk 0:00:16]}  Be1 {[%clk 0:00:03]} 48. e7 {[%clk 0:00:14]}  Kf7 {[%clk 0:00:03]} 49. Rd6 {[%clk 0:00:08]}  Bb4 {[%clk 0:00:02]} 50. Rf6+ {[%clk 0:00:07]}  Kxe7 {[%clk 0:00:02]} 51. Rxa6 {[%clk 0:00:08]}  Rd8 {[%clk 0:00:01]} 52. f5 {[%clk 0:00:08]}  Bd2 {[%clk 0:00:01]} 53. Bc5+ {[%clk 0:00:07]}  Kf7 {[%clk 0:00:01]} 54. e6+ {[%clk 0:00:07]}  Kg8 {[%clk 0:00:01]} 55. f6 {[%clk 0:00:06]}  Nf4+ {[%clk 0:00:02]} 56. Kg3 {[%clk 0:00:07]}  Nxe6 {[%clk 0:00:02]} 57. Rxe6 {[%clk 0:00:07]}  Bh6 {[%clk 0:00:02]} 58. Rb6 {[%clk 0:00:05]}  Bf8 {[%clk 0:00:02]} 59. Bxf8 {[%clk 0:00:05]}  Kxf8 {[%clk 0:00:03]} 60. Rxb5 {[%clk 0:00:06]}  Rd2 {[%clk 0:00:04]} 61. a4 {[%clk 0:00:06]}  Kf7 {[%clk 0:00:04]} 62. Rb6 {[%clk 0:00:06]}  Rd5 {[%clk 0:00:04]} 63. Rb4 {[%clk 0:00:06]}  Rc5 {[%clk 0:00:01]} 64. Rb6 {[%clk 0:00:05]}  Ra5 {[%clk 0:00:01]} 65. Rb4 {[%clk 0:00:05]}  Rc5 {[%clk 0:00:01]} 66. Rb5 {[%clk 0:00:05]}  Rc6 {[%clk 0:00:01]} 67. a5 {[%clk 0:00:05]}  c3 {[%clk 0:00:01]} 68. bxc3 {[%clk 0:00:04]}  Rxc3 {[%clk 0:00:02]} 69. Rb6 {[%clk 0:00:05]}  Ra3 {[%clk 0:00:02]} 70. a6 {[%clk 0:00:06]} 1-0


[Site "https://www.chess.com"]

[Event "Titled Tuesday Blitz July 6 2021"]
[White "Naroditsky, Daniel"]
[Black "Obregon, Andres Carlos"]
[WhiteFideId "2026961"]
[BlackFideId "111724"]
[WhiteElo "2608"]
[BlackElo "2572"]
[Result "1-0"]
[Round "11"]
[TimeControl "180+1"]
[Date "2021.07.06"]
[WhiteClock "0:00:29"]
[BlackClock "0:00:02"]

1. e4 {[%clk 0:03:00]}  e5 {[%clk 0:02:57]} 2. Nf3 {[%clk 0:03:01]}  Nc6 {[%clk 0:02:57]} 3. Nc3 {[%clk 0:03:01]}  Nf6 {[%clk 0:02:57]} 4. g3 {[%clk 0:03:02]}  Bc5 {[%clk 0:02:54]} 5. Bg2 {[%clk 0:03:03]}  d6 {[%clk 0:02:54]} 6. O-O {[%clk 0:03:04]}  a6 {[%clk 0:02:53]} 7. d3 {[%clk 0:03:04]}  h6 {[%clk 0:02:52]} 8. h3 {[%clk 0:03:05]}  O-O {[%clk 0:02:49]} 9. Kh2 {[%clk 0:03:06]}  Nd4 {[%clk 0:02:46]} 10. Nd2 {[%clk 0:03:07]}  c6 {[%clk 0:02:44]} 11. f4 {[%clk 0:03:07]}  Re8 {[%clk 0:02:26]} 12. Ne2 {[%clk 0:03:08]}  Bg4 {[%clk 0:02:17]} 13. Nf3 {[%clk 0:03:04]}  Bxf3 {[%clk 0:02:13]} 14. Bxf3 {[%clk 0:03:04]}  Nxf3+ {[%clk 0:02:14]} 15. Rxf3 {[%clk 0:03:05]}  d5 {[%clk 0:01:56]} 16. exd5 {[%clk 0:03:06]}  e4 {[%clk 0:01:45]} 17. dxe4 {[%clk 0:03:04]}  Nxe4 {[%clk 0:01:45]} 18. Nc3 {[%clk 0:03:04]}  Qf6 {[%clk 0:01:28]} 19. dxc6 {[%clk 0:02:47]}  Rad8 {[%clk 0:01:16]} 20. Nxe4 {[%clk 0:02:37]}  Rxe4 {[%clk 0:01:14]} 21. Rd3 {[%clk 0:02:35]}  Rde8 {[%clk 0:01:13]} 22. Rd2 {[%clk 0:02:06]}  Qxc6 {[%clk 0:01:10]} 23. Qf3 {[%clk 0:02:06]}  Re2+ {[%clk 0:01:01]} 24. Qxe2 {[%clk 0:02:05]}  Rxe2+ {[%clk 0:01:00]} 25. Rxe2 {[%clk 0:02:05]}  Qf3 {[%clk 0:01:00]} 26. Rg2 {[%clk 0:02:05]}  Qf1 {[%clk 0:00:56]} 27. b3 {[%clk 0:02:06]}  h5 {[%clk 0:00:45]} 28. Bb2 {[%clk 0:02:02]}  Qf3 {[%clk 0:00:45]} 29. h4 {[%clk 0:02:03]}  Bf2 {[%clk 0:00:39]} 30. a4 {[%clk 0:01:55]}  f6 {[%clk 0:00:39]} 31. b4 {[%clk 0:01:45]}  g5 {[%clk 0:00:13]} 32. Ra3 {[%clk 0:01:30]}  Bxg3+ {[%clk 0:00:12]} 33. Rxg3 {[%clk 0:01:24]}  Qf2+ {[%clk 0:00:13]} 34. Kh1 {[%clk 0:01:17]}  g4 {[%clk 0:00:07]} 35. Rae3 {[%clk 0:01:03]}  Qxf4 {[%clk 0:00:05]} 36. Kg2 {[%clk 0:00:55]}  f5 {[%clk 0:00:06]} 37. Re2 {[%clk 0:00:42]}  Qc4 {[%clk 0:00:05]} 38. Rge3 {[%clk 0:00:40]}  Qd5+ {[%clk 0:00:02]} 39. Kg3 {[%clk 0:00:29]}  Qd6+ {[%clk 0:00:02]} 40. Be5 {[%clk 0:00:30]}  Qxb4 {[%clk 0:00:02]} 41. Bf4 {[%clk 0:00:30]}  Kf7 {[%clk 0:00:02]} 42. Re7+ {[%clk 0:00:29]} 1-0


[Site "https://www.chess.com"]

[Event "Titled Tuesday Blitz July 6 2021"]
[White "Navalgund, Niranjan"]
[Black "Zubritskiy, Artyom"]
[WhiteFideId "5030854"]
[BlackFideId "4181247"]
[WhiteElo "2290"]
[BlackElo "2559"]
[Result "1-0"]
[Round "11"]
[TimeControl "180+1"]
[Date "2021.07.06"]
[WhiteClock "0:02:31"]
[BlackClock "0:02:28"]

1. e4 {[%clk 0:03:00]}  e5 {[%clk 0:02:57]} 2. Nf3 {[%clk 0:03:00]}  f5 {[%clk 0:02:57]} 3. Nc3 {[%clk 0:03:01]}  Nc6 {[%clk 0:02:56]} 4. d4 {[%clk 0:02:54]}  fxe4 {[%clk 0:02:56]} 5. Nxe5 {[%clk 0:02:54]}  Nf6 {[%clk 0:02:57]} 6. Bc4 {[%clk 0:02:53]}  d5 {[%clk 0:02:51]} 7. Nxd5 {[%clk 0:02:39]}  Nxd5 {[%clk 0:02:46]} 8. Qh5+ {[%clk 0:02:40]}  g6 {[%clk 0:02:46]} 9. Nxg6 {[%clk 0:02:40]}  Nf6 {[%clk 0:02:43]} 10. Bf7+ {[%clk 0:02:32]}  Kxf7 {[%clk 0:02:34]} 11. Ne5+ {[%clk 0:02:32]}  Ke6 {[%clk 0:02:34]} 12. Qf7+ {[%clk 0:02:31]}  Kd6 {[%clk 0:02:28]} 13. Nc4# {[%clk 0:02:31]} 1-0


[Site "https://www.chess.com"]

[Event "Titled Tuesday Blitz July 6 2021"]
[White "Omariev, Maksim"]
[Black "Reprintsev, Alexander"]
[WhiteFideId "4193423"]
[BlackFideId "14100541"]
[WhiteElo "2384"]
[BlackElo "2126"]
[Result "0-1"]
[Round "11"]
[TimeControl "180+1"]
[Date "2021.07.06"]
[WhiteClock "0:00:02"]
[BlackClock "0:00:18"]

1. g4 {[%clk 0:02:25]}  d5 {[%clk 0:02:34]} 2. Bg2 {[%clk 0:02:25]}  Bxg4 {[%clk 0:02:35]} 3. c4 {[%clk 0:02:25]}  dxc4 {[%clk 0:02:35]} 4. Bxb7 {[%clk 0:02:23]}  Nd7 {[%clk 0:02:36]} 5. Bxa8 {[%clk 0:02:23]}  Qxa8 {[%clk 0:02:36]} 6. f3 {[%clk 0:02:22]}  e5 {[%clk 0:02:35]} 7. Qa4 {[%clk 0:02:12]}  Be6 {[%clk 0:02:34]} 8. Na3 {[%clk 0:02:09]}  Nf6 {[%clk 0:02:10]} 9. Nxc4 {[%clk 0:02:07]}  Bc5 {[%clk 0:02:05]} 10. Nxe5 {[%clk 0:02:01]}  O-O {[%clk 0:02:01]} 11. Nxd7 {[%clk 0:01:57]}  Bxd7 {[%clk 0:02:00]} 12. Qc4 {[%clk 0:01:57]}  Bd6 {[%clk 0:01:35]} 13. b3 {[%clk 0:01:54]}  Be6 {[%clk 0:01:33]} 14. Qc2 {[%clk 0:01:47]}  Be5 {[%clk 0:01:32]} 15. Bb2 {[%clk 0:01:45]}  Qd5 {[%clk 0:01:29]} 16. e4 {[%clk 0:01:33]}  Qd6 {[%clk 0:01:27]} 17. Ne2 {[%clk 0:00:57]}  c5 {[%clk 0:01:25]} 18. Rc1 {[%clk 0:00:30]}  Bxb2 {[%clk 0:01:10]} 19. Qxb2 {[%clk 0:00:31]}  Nh5 {[%clk 0:01:04]} 20. Qc3 {[%clk 0:00:28]}  Rc8 {[%clk 0:01:02]} 21. Qe3 {[%clk 0:00:26]}  h6 {[%clk 0:00:59]} 22. O-O {[%clk 0:00:14]}  a5 {[%clk 0:00:55]} 23. f4 {[%clk 0:00:14]}  Bg4 {[%clk 0:00:53]} 24. Ng3 {[%clk 0:00:12]}  a4 {[%clk 0:00:50]} 25. bxa4 {[%clk 0:00:11]}  c4 {[%clk 0:00:49]} 26. e5 {[%clk 0:00:08]}  Qa6 {[%clk 0:00:45]} 27. d3 {[%clk 0:00:04]}  c3 {[%clk 0:00:44]} 28. d4 {[%clk 0:00:04]}  c2 {[%clk 0:00:42]} 29. Nxh5 {[%clk 0:00:04]}  Bxh5 {[%clk 0:00:41]} 30. Rf2 {[%clk 0:00:05]}  Bd1 {[%clk 0:00:30]} 31. d5 {[%clk 0:00:03]}  Qxa4 {[%clk 0:00:29]} 32. d6 {[%clk 0:00:03]}  Qxa2 {[%clk 0:00:26]} 33. Qd2 {[%clk 0:00:02]}  Qa7 {[%clk 0:00:23]} 34. Kg2 {[%clk 0:00:01]}  Qb7+ {[%clk 0:00:22]} 35. Kg3 {[%clk 0:00:02]}  Ra8 {[%clk 0:00:21]} 36. Qe3 {[%clk 0:00:02]}  Qd7 {[%clk 0:00:19]} 37. Rcxc2 {[%clk 0:00:02]}  Qg4# {[%clk 0:00:18]} 0-1


[Site "https://www.chess.com"]

[Event "Titled Tuesday Blitz July 6 2021"]
[White "Perez Rodriguez, Luis Manuel"]
[Black "Leenhouts, Koen"]
[WhiteFideId "3503364"]
[BlackFideId "1008439"]
[WhiteElo "2429"]
[BlackElo "2409"]
[Result "1-0"]
[Round "11"]
[TimeControl "180+1"]
[Date "2021.07.06"]
[WhiteClock "0:00:10"]
[BlackClock "0:00:02"]

1. e3 {[%clk 0:03:00]}  d5 {[%clk 0:02:59]} 2. d4 {[%clk 0:03:00]}  Nf6 {[%clk 0:02:58]} 3. c4 {[%clk 0:02:59]}  e6 {[%clk 0:02:53]} 4. Nf3 {[%clk 0:02:59]}  Be7 {[%clk 0:02:52]} 5. b3 {[%clk 0:02:59]}  O-O {[%clk 0:02:52]} 6. Bb2 {[%clk 0:02:56]}  b6 {[%clk 0:02:52]} 7. Nbd2 {[%clk 0:02:56]}  Bb7 {[%clk 0:02:52]} 8. Bd3 {[%clk 0:02:56]}  c5 {[%clk 0:02:50]} 9. O-O {[%clk 0:02:56]}  Nc6 {[%clk 0:02:49]} 10. cxd5 {[%clk 0:02:48]}  Nb4 {[%clk 0:02:32]} 11. Bb1 {[%clk 0:02:44]}  Nbxd5 {[%clk 0:02:31]} 12. e4 {[%clk 0:02:36]}  Nf4 {[%clk 0:02:31]} 13. Re1 {[%clk 0:02:20]}  cxd4 {[%clk 0:02:28]} 14. Nxd4 {[%clk 0:02:18]}  Bc5 {[%clk 0:02:22]} 15. Nc4 {[%clk 0:02:13]}  Qe7 {[%clk 0:02:13]} 16. Qf3 {[%clk 0:02:05]}  Ng6 {[%clk 0:02:03]} 17. Bc2 {[%clk 0:01:51]}  Rad8 {[%clk 0:02:01]} 18. Rad1 {[%clk 0:01:51]}  Nd7 {[%clk 0:01:51]} 19. Qg3 {[%clk 0:01:47]}  Qh4 {[%clk 0:01:35]} 20. Nb5 {[%clk 0:01:39]}  Qxg3 {[%clk 0:01:28]} 21. hxg3 {[%clk 0:01:40]}  a6 {[%clk 0:01:23]} 22. Nbd6 {[%clk 0:01:32]}  Bc6 {[%clk 0:01:22]} 23. a4 {[%clk 0:01:28]}  f6 {[%clk 0:00:49]} 24. Re2 {[%clk 0:01:21]}  Nde5 {[%clk 0:00:47]} 25. Nxe5 {[%clk 0:01:06]}  Nxe5 {[%clk 0:00:37]} 26. Nc4 {[%clk 0:00:35]}  Rxd1+ {[%clk 0:00:35]} 27. Bxd1 {[%clk 0:00:34]}  Nxc4 {[%clk 0:00:35]} 28. bxc4 {[%clk 0:00:34]}  Rd8 {[%clk 0:00:36]} 29. Bb3 {[%clk 0:00:32]}  e5 {[%clk 0:00:28]} 30. Kf1 {[%clk 0:00:30]}  Kf7 {[%clk 0:00:23]} 31. f4 {[%clk 0:00:30]}  Rd3 {[%clk 0:00:19]} 32. Bc2 {[%clk 0:00:25]}  Rxg3 {[%clk 0:00:19]} 33. fxe5 {[%clk 0:00:26]}  fxe5 {[%clk 0:00:18]} 34. Bxe5 {[%clk 0:00:27]}  Ra3 {[%clk 0:00:18]} 35. Bb2 {[%clk 0:00:20]}  Re3 {[%clk 0:00:11]} 36. Rxe3 {[%clk 0:00:17]}  Bxe3 {[%clk 0:00:12]} 37. Ke2 {[%clk 0:00:17]}  Bc5 {[%clk 0:00:12]} 38. Kf3 {[%clk 0:00:14]}  g6 {[%clk 0:00:11]} 39. Kf4 {[%clk 0:00:14]}  Ke6 {[%clk 0:00:10]} 40. e5 {[%clk 0:00:13]}  Bxg2 {[%clk 0:00:08]} 41. Bd1 {[%clk 0:00:11]}  h5 {[%clk 0:00:06]} 42. Bc2 {[%clk 0:00:11]}  Kf7 {[%clk 0:00:04]} 43. e6+ {[%clk 0:00:11]}  Kxe6 {[%clk 0:00:04]} 44. Bxg6 {[%clk 0:00:12]}  h4 {[%clk 0:00:03]} 45. Bf5+ {[%clk 0:00:12]}  Kd6 {[%clk 0:00:02]} 46. Bf6 {[%clk 0:00:10]}  h3 {[%clk 0:00:02]} 47. Kg3 {[%clk 0:00:10]} 1-0


[Site "https://www.chess.com"]

[Event "Titled Tuesday Blitz July 6 2021"]
[White "Potapova, Margarita"]
[Black "Terletsky, Oleg"]
[WhiteFideId "14126869"]
[BlackFideId "14116774"]
[WhiteElo "2229"]
[BlackElo "2094"]
[Result "1-0"]
[Round "11"]
[TimeControl "180+1"]
[Date "2021.07.06"]
[WhiteClock "0:01:31"]
[BlackClock "0:00:07"]

1. Nf3 {[%clk 0:03:00]}  Nf6 {[%clk 0:02:59]} 2. b3 {[%clk 0:03:00]}  g6 {[%clk 0:02:58]} 3. Bb2 {[%clk 0:03:01]}  Bg7 {[%clk 0:02:58]} 4. g3 {[%clk 0:03:01]}  O-O {[%clk 0:02:58]} 5. Bg2 {[%clk 0:03:01]}  d5 {[%clk 0:02:58]} 6. c4 {[%clk 0:02:58]}  dxc4 {[%clk 0:02:55]} 7. bxc4 {[%clk 0:02:58]}  c5 {[%clk 0:02:55]} 8. O-O {[%clk 0:02:56]}  Nc6 {[%clk 0:02:55]} 9. d3 {[%clk 0:02:55]}  Qc7 {[%clk 0:02:35]} 10. Nc3 {[%clk 0:02:54]}  a6 {[%clk 0:02:20]} 11. Rb1 {[%clk 0:02:51]}  e6 {[%clk 0:02:08]} 12. Na4 {[%clk 0:02:50]}  Nd7 {[%clk 0:01:31]} 13. Bxg7 {[%clk 0:02:47]}  Kxg7 {[%clk 0:01:32]} 14. Qb3 {[%clk 0:02:45]}  Rb8 {[%clk 0:01:08]} 15. Qa3 {[%clk 0:02:45]}  b6 {[%clk 0:01:05]} 16. h4 {[%clk 0:02:32]}  h6 {[%clk 0:01:04]} 17. Rb2 {[%clk 0:02:31]}  Nb4 {[%clk 0:00:52]} 18. Qc3+ {[%clk 0:02:26]}  Kh7 {[%clk 0:00:50]} 19. a3 {[%clk 0:02:26]}  Nc6 {[%clk 0:00:49]} 20. Rfb1 {[%clk 0:02:23]}  e5 {[%clk 0:00:45]} 21. Qe1 {[%clk 0:02:10]}  Nd4 {[%clk 0:00:43]} 22. Nc3 {[%clk 0:02:09]}  Nf6 {[%clk 0:00:41]} 23. Nd2 {[%clk 0:02:04]}  Bg4 {[%clk 0:00:35]} 24. e3 {[%clk 0:01:56]}  Nc6 {[%clk 0:00:29]} 25. Nd5 {[%clk 0:01:51]}  Nxd5 {[%clk 0:00:27]} 26. cxd5 {[%clk 0:01:52]}  Na5 {[%clk 0:00:19]} 27. Ne4 {[%clk 0:01:52]}  Bd7 {[%clk 0:00:11]} 28. h5 {[%clk 0:01:46]}  g5 {[%clk 0:00:10]} 29. d6 {[%clk 0:01:42]}  Qa7 {[%clk 0:00:09]} 30. Nf6+ {[%clk 0:01:36]}  Kg7 {[%clk 0:00:09]} 31. Nd5 {[%clk 0:01:36]}  b5 {[%clk 0:00:07]} 32. Qxa5 {[%clk 0:01:35]}  Be6 {[%clk 0:00:07]} 33. Nc7 {[%clk 0:01:31]} 1-0


[Site "https://www.chess.com"]